fUSD/lending_fUSD_20240812
["ID","MTS","AMOUNT","RATE_DAILY","PERIOD"]
[334717498,1723503034163,-151.0,0.00012539,2]
[334717499,1723503034172,-151.0,0.00012539,2]
[334717500,1723503034182,-181.882084,0.00012539,2]
[334717501,1723503034193,-181.882084,0.00012539,2]
[334717502,1723503034203,-151.0,0.00012539,2]
[334717503,1723503034212,-151.0,0.00012539,2]
[334717504,1723503034222,-151.0,0.00012539,2]
[334717505,1723503034232,-151.0,0.00012539,2]
[334717506,1723503034241,-151.0,0.00012539,2]
[334717507,1723503034250,-151.0,0.00012539,2]
[334717508,1723503034259,-151.0,0.00012539,2]
[334717509,1723503034269,-151.0,0.00012539,2]
[334717510,1723503034277,-638.934986,0.00012539,2]
[334717511,1723503034287,-638.934986,0.00012539,2]
[334717512,1723503034296,-151.0,0.00012539,2]
[334717513,1723503034305,-226.534642,0.00012539,2]
[334717514,1723503034315,-226.534642,0.00012539,2]
[334717515,1723503034325,-234.458825,0.00012539,2]
[334717516,1723503034335,-151.0,0.00012539,2]
[334717517,1723503034344,-151.0,0.00012539,2]
[334717518,1723503034354,-151.0,0.00012539,2]
[334717519,1723503034363,-156.055181,0.00012539,2]
[334717520,1723503034373,-156.055181,0.00012539,2]
[334717521,1723503034382,-156.055181,0.00012539,2]
[334717522,1723503034393,-156.055181,0.00012539,2]
[334717523,1723503034403,-204.185008,0.00012539,2]
[334717524,1723503034412,-151.0,0.00012539,2]
[334717525,1723503034422,-151.0,0.00012539,2]
[334717526,1723503034431,-204.185008,0.00012539,2]
[334717527,1723503034441,-442.129003,0.00012539,2]
[334717528,1723503034451,-442.129003,0.00012539,2]
[334717529,1723503034461,-189.53801,0.00012539,2]
[334717530,1723503034470,-196.084293,0.00012539,2]
[334717531,1723503034480,-196.084293,0.00012539,2]
[334717532,1723503034490,-196.084293,0.00012539,2]
[334717533,1723503034499,-196.084293,0.00012539,2]
[334717534,1723503034508,-151.0,0.00012539,2]
[334717535,1723503034517,-151.0,0.00012539,2]
[334717536,1723503034526,-151.0,0.00012539,2]
[334717537,1723503034535,-151.0,0.00012539,2]
[334717538,1723503034544,-151.0,0.00012539,2]
[334717539,1723503034553,-238.263108,0.00012539,2]
[334717540,1723503034562,-151.0,0.00012539,2]
[334717541,1723503034571,-238.263108,0.00012539,2]
[334717542,1723503034581,-151.0,0.00012539,2]
[334717543,1723503034590,-151.0,0.00012539,2]
[334717544,1723503034599,-151.0,0.00012539,2]
[334717545,1723503034609,-151.0,0.00012539,2]
[334717546,1723503034618,-151.0,0.00012539,2]
[334717547,1723503034627,-151.0,0.00012539,2]
[334717548,1723503034636,-151.0,0.00012539,2]
[334717549,1723503034648,-151.0,0.00012539,2]
[334717550,1723503034658,-151.0,0.00012539,2]
[334717551,1723503034667,-151.0,0.00012539,2]
[334717552,1723503034677,-193.901816,0.00012539,2]
[334717553,1723503034686,-151.0,0.00012539,2]
[334717554,1723503034695,-151.0,0.00012539,2]
[334717555,1723503034705,-151.0,0.00012539,2]
[334717556,1723503034714,-151.0,0.00012539,2]
[334717557,1723503034724,-2015.842787,0.00012539,2]
[334717558,1723503034734,-151.0,0.00012539,2]
[334717559,1723503034743,-2015.842787,0.00012539,2]
[334717560,1723503034753,-170.755844,0.00012539,2]
[334717561,1723503034762,-4853.0710517,0.00012539,2]
[334717562,1723503034771,-170.755844,0.00012539,2]
[334717563,1723503034780,-210.290052,0.00012539,2]
[334717564,1723503034790,-210.290052,0.00012539,2]
[334717565,1723503034800,-151.0,0.00012539,2]
[334717566,1723503034814,-128675.13244587,0.0001254,2]
[334717567,1723503034829,-6596.95029758,0.0001254,2]
[334717575,1723503037668,-412.81,0.00012,2]
[334717576,1723503037678,-111.43279113,0.00012,2]
[334717577,1723503037690,-301.37720887,0.00012,2]
[334717578,1723503037700,-412.81,0.00012,2]
[334717579,1723503037710,-412.81,0.00012,2]
[334717580,1723503037720,-903.87007471,0.0001254,2]
[334717581,1723503037731,-410.0,0.0001254,2]
[334717582,1723503037879,-412.81,0.00012,2]
[334717583,1723503037891,-87.19,0.0001254,2]
[334717748,1723503039790,-412.81,0.00012,2]
[334717750,1723503039800,-412.81,0.00012,2]
[334717752,1723503039812,-412.81,0.00012,2]
[334717754,1723503039822,-412.81,0.00012,2]
[334717755,1723503039831,-412.81,0.00012,2]
[334717757,1723503039841,-412.81,0.00012,2]
[334717759,1723503039851,-412.81,0.00012,2]
[334717761,1723503039861,-22420.1506643,0.0001254,2]
[334718045,1723503042779,-412.81,0.00012,2]
[334718047,1723503042789,-412.81,0.00012,2]
[334718049,1723503042799,-412.81,0.00012,2]
[334718051,1723503042811,-98.49395265,0.00012,2]
[334718053,1723503042822,-314.31604735,0.00012,2]
[334718055,1723503042832,-289.86629801,0.00012,2]
[334718123,1723503043513,-122.94370199,0.00012,2]
[334718125,1723503043522,-412.81,0.00012,2]
[334718127,1723503043532,-412.81,0.00012,2]
[334718129,1723503043541,-236615.67451992,0.0001254,2]
[334718358,1723503045793,-412.81,0.00012,2]
[334718360,1723503045804,-412.81,0.00012,2]
[334718362,1723503045817,-412.81,0.00012,2]
[334718364,1723503045826,-412.81,0.00012,2]
[334718366,1723503045836,-412.81,0.00012,2]
[334718368,1723503045846,-412.81,0.00012,2]
[334718370,1723503045857,-412.81,0.00012,2]
[334718372,1723503045867,-412.81,0.00012,2]
[334718374,1723503045876,-412.81,0.00012,2]
[334718376,1723503045887,-412.81,0.00012,2]
[334718378,1723503045896,-412.81,0.00012,2]
[334718380,1723503045907,-246.0,0.000121,5]
[334718382,1723503045917,-26026.48342109,0.0001254,2]
[334718385,1723503045941,-412.81,0.00012,2]
[334718387,1723503045951,-1158.61027407,0.0001254,2]
[334718720,1723503197126,500.0,0.00024932,120]
[334718757,1723503783637,271.07,9.211e-05,2]
[334718758,1723503797519,500.0,0.00024932,120]
[334718785,1723504231652,-284.0,9.955e-05,2]
[334718787,1723504231661,-506.15908962,9.956e-05,2]
[334718809,1723504232118,-594.84091038,9.956e-05,2]
[334718810,1723504232128,-150.0,0.00010799,2]
[334718811,1723504232138,-187.43686088,0.000108,2]
[334718812,1723504232147,-100.81348235,0.000108,2]
[334718813,1723504232157,-844.63596783,0.000108,2]
[334718814,1723504232235,-69.43594982,0.000108,2]
[334718815,1723504232244,-5107.1585962,0.000108,2]
[334718816,1723504232255,-676.29250496,0.000108,2]
[334718817,1723504232352,-856.26166783,0.000108,2]
[334718818,1723504232363,-51212.17213101,0.000108,2]
[334718819,1723504232372,-372.10514401,0.00011,2]
[334718820,1723504232382,-250.0,0.00011,2]
[334718821,1723504232391,-274.74,0.00011,2]
[334718822,1723504232400,-250.0,0.00011099,2]
[334718823,1723504232410,-155.0,0.00011105,2]
[334718824,1723504232420,-226.09034899,0.00011105,2]
[334718825,1723504232429,-1139.1217656,0.00011105,2]
[334718826,1723504232438,-3121.02924387,0.00011105,2]
[334718827,1723504232448,-719.99287251,0.00011105,2]
[334718828,1723504232457,-251.08685718,0.00011105,2]
[334718829,1723504232467,-649.86351287,0.00011105,2]
[334718830,1723504232476,-1074.67923523,0.00011105,2]
[334718831,1723504232485,-298.64662098,0.00011105,2]
[334718832,1723504232494,-628.64037232,0.00011105,2]
[334718833,1723504232503,-921.56338905,0.00011105,2]
[334718834,1723504232512,-168.0,0.00011112,2]
[334718835,1723504232521,-259.12,0.00011112,2]
[334718836,1723504232530,-168.08,0.00011185,2]
[334718837,1723504232539,-522.26105292,0.00011186,2]
[334718838,1723504232547,-522.26105292,0.00011186,2]
[334718839,1723504232556,-1000.0,0.00011186,2]
[334718840,1723504232565,-1893.1,0.00011189,2]
[334718841,1723504232574,-600.74422133,0.00011206,2]
[334718842,1723504232588,-499.99,0.00011275,2]
[334718843,1723504232597,-17751.69,0.00011279,2]
[334718844,1723504232607,-271.07,0.00011475,2]
[334718845,1723504232616,-493.59808335,0.00011525,2]
[334718846,1723504232626,-211.73961936,0.00011525,2]
[334718847,1723504232635,-962.44601255,0.0001185,2]
[334718848,1723504232645,-723.413963,0.00011896,2]
[334718849,1723504232654,-513.17170616,0.00011959,2]
[334718850,1723504232664,-156.18479094,0.00011959,2]
[334718851,1723504232672,-160.0,0.00012118,2]
[334718852,1723504232682,-641.14700617,0.00012128,2]
[334718853,1723504232691,-388.08345911,0.00012244,2]
[334718854,1723504232700,-155.0,0.00012391,2]
[334718855,1723504232710,-440.08291615,0.00012391,2]
[334718856,1723504232719,-520.13340827,0.00012391,2]
[334718857,1723504232728,-297.48958849,0.00012391,2]
[334718858,1723504232737,-440.08291615,0.00012391,2]
[334718859,1723504232746,-309.29668231,0.00012397,2]
[334718860,1723504232755,-11730.3813962,0.00012415,2]
[334718861,1723504232764,-17800.0634,0.0001243,2]
[334718862,1723504232774,-500.0,0.0001244,2]
[334718863,1723504232783,-200.0,0.0001245,2]
[334718864,1723504232792,-200.0,0.0001246,2]
[334718865,1723504232802,-476.94280787,0.0001246,2]
[334718866,1723504232811,-2000.0,0.000125,2]
[334718867,1723504232821,-2000.0,0.000125,2]
[334718868,1723504232833,-1076.0,0.00012532,2]
[334718869,1723504232843,-12889.2395064,0.00012536,2]
[334718870,1723504232852,-5462.3462081,0.00012536,2]
[334718871,1723504232862,-2001.61731209,0.00012539,2]
[334718872,1723504232871,-63010.43097235,0.0001254,2]
[334718873,1723504232883,-307.36198922,0.0001254,2]
[334718874,1723504232895,-283.8100001,0.0001254,2]
[334718877,1723504238149,-600.74422133,0.00011206,2]
[334718878,1723504238160,-331.39,0.00012,2]
[334718879,1723504238170,-331.39,0.00012,2]
[334718880,1723504238180,-420.3320603,0.00012273,2]
[334718881,1723504238190,-12892.00873818,0.0001254,2]
[334718882,1723504238199,-401.38425567,0.0001254,2]
[334718883,1723504238209,-211.06190242,0.0001254,2]
[334718884,1723504238223,-367.87511774,0.0001254,2]
[334718885,1723504238233,-3000.0,0.0001254,2]
[334718887,1723504238242,-227.31243139,0.00012581,2]
[334718889,1723504238253,-155.0,0.00012581,2]
[334718891,1723504238263,-167.55459275,0.00012581,2]
[334718893,1723504238272,-547.83299741,0.00012581,2]
[334718895,1723504238281,-205.93925426,0.00012581,2]
[334718897,1723504238292,-1000.0,0.00012584,2]
[334718899,1723504238301,-155.0,0.00012613,2]
[334718901,1723504238311,-155.0,0.00012613,2]
[334718903,1723504238320,-359.41537774,0.00012613,2]
[334718904,1723504238330,-202.906155,0.00012613,2]
[334718906,1723504238339,-155.0,0.00012665,2]
[334718908,1723504238348,-364.18791554,0.00012666,2]
[334718910,1723504238358,-400.0,0.00012666,2]
[334718912,1723504238367,-357.45302385,0.00012666,2]
[334718914,1723504238377,-347.69615481,0.00012666,2]
[334718916,1723504238387,-454.57521967,0.00012666,2]
[334718918,1723504238396,-400.0,0.00012666,2]
[334718920,1723504238406,-255.19609183,0.00012666,2]
[334718922,1723504238416,-485.18668102,0.00012666,2]
[334718924,1723504238425,-164.37927092,0.00012681,2]
[334718926,1723504238435,-155.0,0.00012681,2]
[334718928,1723504238444,-155.0,0.00012681,2]
[334718930,1723504238454,-164.37927092,0.00012681,2]
[334718932,1723504238464,-218.91005949,0.00012681,2]
[334718934,1723504238473,-1634.40285914,0.00012681,2]
[334718936,1723504238483,-365.80180037,0.00012681,2]
[334718938,1723504238492,-155.0,0.0001269,2]
[334718940,1723504238502,-328.2488375,0.0001269,2]
[334718942,1723504238511,-155.0,0.0001269,2]
[334718944,1723504238520,-432.47832469,0.0001269,2]
[334718946,1723504238530,-155.44272361,0.00012696,2]
[334718948,1723504238539,-203.41395605,0.00012696,2]
[334718950,1723504238549,-155.44272361,0.00012696,2]
[334718952,1723504238558,-164.40260801,0.00012696,2]
[334718954,1723504238567,-528.91996067,0.00012696,2]
[334718956,1723504238578,-270.58164358,0.00012696,2]
[334718958,1723504238588,-223.163,0.00012706,2]
[334718960,1723504238598,-150.0,0.00012706,2]
[334718962,1723504238608,-206.76991049,0.00012818,2]
[334718964,1723504238617,-197.1386879,0.00012818,2]
[334718966,1723504238627,-380.32741541,0.00012818,2]
[334718968,1723504238636,-330.1975188,0.00012818,2]
[334718970,1723504238646,-155.0,0.00012826,2]
[334718972,1723504238655,-232.0,0.00012843,2]
[334718974,1723504238665,-651.294,0.0001286,2]
[334718976,1723504238674,-360.793,0.0001286,2]
[334718978,1723504238684,-1542.0,0.0001286,2]
[334718980,1723504238693,-556.0,0.0001286,2]
[334718982,1723504238702,-550.0,0.0001286,2]
[334718984,1723504238712,-355.881,0.0001286,2]
[334718986,1723504238721,-728.999,0.0001286,2]
[334718988,1723504238730,-265.43626793,0.00012883,2]
[334718990,1723504238743,-236.34424982,0.00012883,2]
[334718992,1723504238752,-179.99,0.00012893,2]
[334718993,1723504238762,-211.0133722,0.00012924,2]
[334718996,1723504238771,-790.65640498,0.00012938,2]
[334718998,1723504238781,-313.72504289,0.00012995,2]
[334719000,1723504238790,-150.0,0.00013,2]
[334719002,1723504238800,-155.0,0.00013303,2]
[334719003,1723504238810,-20078.74213691,0.00013378,2]
[334719096,1723504239907,-324.43675309,0.00012,2]
[334719118,1723504240111,-6.95324691,0.00012,2]
[334719120,1723504240121,-331.39,0.00012,2]
[334719122,1723504240131,-331.39,0.00012,2]
[334719124,1723504240141,-331.39,0.00012,2]
[334719126,1723504240151,-331.39,0.00012,2]
[334719128,1723504240160,-331.39,0.00012,2]
[334719130,1723504240170,-165.50846167,0.00012665,2]
[334719132,1723504240179,-5243.47899109,0.00013378,2]
[334719134,1723504240188,-11028.74813853,0.00013378,2]
[334719362,1723504243424,-331.39,0.00012,2]
[334719364,1723504243434,-331.39,0.00012,2]
[334719366,1723504243444,-331.39,0.00012,2]
[334719368,1723504243455,-331.39,0.00012,2]
[334719370,1723504243464,-331.39,0.00012,2]
[334719372,1723504243475,-2001.61731209,0.00012539,2]
[334719374,1723504243485,-155.0,0.00012613,2]
[334719376,1723504243495,-14293.47298947,0.00013378,2]
[334719378,1723504243505,-5000.0,0.00013378,2]
[334719380,1723504243515,-9271.17344175,0.00013398,2]
[334719382,1723504243524,-35727.72779464,0.00013398,2]
[334719384,1723504243534,-4794.79259411,0.00013398,2]
[334719386,1723504243544,-3404.38999599,0.00013398,2]
[334719387,1723504243553,-155.0,0.00013479,2]
[334719388,1723504243564,-2341.8386325,0.00013479,2]
[334719389,1723504243573,-2841.12816254,0.00013489,2]
[334719390,1723504243584,-5403.00141948,0.00013489,2]
[334719391,1723504243593,-3032.35761195,0.00013489,2]
[334719392,1723504243602,-2145.94258433,0.00013489,2]
[334719393,1723504243612,-7000.0,0.00013489,3]
[334719394,1723504243621,-3082.18064459,0.00013489,2]
[334719395,1723504243631,-2000.0,0.000135,2]
[334719396,1723504243640,-2000.0,0.000135,2]
[334719397,1723504243649,-263.712679,0.000135,2]
[334719398,1723504243659,-3937.46359227,0.0001351,2]
[334719399,1723504243669,-1050.97743081,0.00013561,2]
[334719400,1723504243678,-209.45746072,0.00013561,2]
[334719401,1723504243688,-151.0,0.00013579,2]
[334719402,1723504243698,-151.0,0.00013579,2]
[334719403,1723504243708,-151.0,0.00013579,2]
[334719404,1723504243718,-151.0,0.00013579,2]
[334719405,1723504243728,-1002.98363349,0.00013579,2]
[334719406,1723504243738,-9903.70253644,0.00013579,2]
[334719407,1723504243747,-151.0,0.00013579,2]
[334719408,1723504243756,-1406.13177639,0.00013579,2]
[334719409,1723504243766,-794.0,0.00013619,2]
[334719410,1723504243776,-160.0,0.00013632,2]
[334719411,1723504243786,-155.0,0.00013648,2]
[334719412,1723504243795,-1298.23330788,0.0001367,2]
[334719413,1723504243805,-1275.64502519,0.0001367,2]
[334719414,1723504243815,-206.97028487,0.0001367,2]
[334719415,1723504243825,-1298.23330788,0.0001367,2]
[334719416,1723504243835,-1739.57017204,0.0001367,2]
[334719417,1723504243845,-2836.06303036,0.0001367,2]
[334719418,1723504243855,-237.52295343,0.00013689,2]
[334719419,1723504243865,-500.0,0.00013699,2]
[334719420,1723504243876,-427.6,0.00013699,2]
[334719421,1723504243886,-2751.0,0.00013699,2]
[334719422,1723504243895,-200.0,0.00013699,2]
[334719423,1723504243905,-10534.15307555,0.00013699,2]
[334719424,1723504243915,-1648.57824608,0.00013699,2]
[334719425,1723504243925,-155.0,0.00013699,2]
[334719426,1723504243935,-155.0,0.00013699,2]
[334719427,1723504243945,-155.0,0.00013699,2]
[334719428,1723504243955,-155.0,0.00013699,2]
[334719429,1723504243964,-3875.44196721,0.00013699,2]
[334719430,1723504243974,-155.0,0.00013699,2]
[334719431,1723504243983,-2502.58566001,0.00013699,2]
[334719432,1723504243993,-155.0,0.00013699,2]
[334719433,1723504244003,-159.58732349,0.00013699,2]
[334719434,1723504244013,-155.0,0.00013699,2]
[334719435,1723504244023,-216.31395803,0.000137,2]
[334719436,1723504244034,-151.0,0.0001372,2]
[334719437,1723504244043,-309.490302,0.0001372,2]
[334719438,1723504244053,-309.490302,0.0001372,2]
[334719439,1723504244063,-151.0,0.0001372,2]
[334719440,1723504244073,-155.0,0.0001372,2]
[334719441,1723504244084,-155.0,0.0001372,2]
[334719442,1723504244094,-155.0,0.0001372,2]
[334719443,1723504244104,-271.07,0.00013739,2]
[334719444,1723504244114,-158.574249,0.00013768,2]
[334719445,1723504244124,-158.574249,0.00013768,2]
[334719446,1723504244134,-151.0,0.00013768,2]
[334719447,1723504244144,-258.80065,0.00013768,2]
[334719448,1723504244154,-151.0,0.00013768,2]
[334719449,1723504244164,-229.69315,0.00013768,2]
[334719450,1723504244174,-1209.505672,0.00013768,2]
[334719451,1723504244184,-166.784176,0.00013768,2]
[334719452,1723504244193,-151.0,0.00013768,2]
[334719453,1723504244203,-166.784176,0.00013768,2]
[334719454,1723504244213,-1209.505672,0.00013768,2]
[334719455,1723504244229,-151.0,0.00013768,2]
[334719456,1723504244239,-179.351638,0.00013768,2]
[334719457,1723504244249,-151.0,0.00013768,2]
[334719458,1723504244259,-179.351638,0.00013768,2]
[334719459,1723504244268,-151.0,0.00013768,2]
[334719460,1723504244279,-151.0,0.00013768,2]
[334719461,1723504244289,-152.14,0.0001379,2]
[334719462,1723504244301,-152.14,0.0001379,2]
[334719463,1723504244311,-152.14,0.0001379,2]
[334719464,1723504244323,-152.14,0.00013796,2]
[334719465,1723504244335,-433.42129888,0.00013797,2]
[334719466,1723504244345,-151.0,0.00013799,2]
[334719467,1723504244355,-151.0,0.00013799,2]
[334719468,1723504244365,-151.0,0.00013799,2]
[334719469,1723504244374,-151.0,0.00013799,2]
[334719470,1723504244385,-151.0,0.00013799,2]
[334719471,1723504244395,-151.0,0.00013799,2]
[334719472,1723504244405,-151.0,0.000138,2]
[334719473,1723504244415,-151.0,0.000138,2]
[334719474,1723504244425,-228.99067,0.000138,2]
[334719475,1723504244435,-151.0,0.000138,2]
[334719476,1723504244445,-158.574249,0.000138,2]
[334719477,1723504244454,-158.574249,0.000138,2]
[334719478,1723504244463,-151.0,0.000138,2]
[334719479,1723504244473,-151.0,0.000138,2]
[334719480,1723504244482,-211.662168,0.000138,2]
[334719481,1723504244492,-174.759644,0.000138,2]
[334719482,1723504244501,-151.0,0.000138,2]
[334719483,1723504244511,-151.0,0.000138,2]
[334719484,1723504244521,-151.0,0.000138,2]
[334719485,1723504244530,-309.490302,0.000138,2]
[334719486,1723504244539,-309.490302,0.000138,2]
[334719487,1723504244549,-151.0,0.000138,2]
[334719488,1723504244558,-400.0,0.000138,5]
[334719489,1723504244568,-151.0,0.000138,2]
[334719490,1723504244577,-1209.505672,0.000138,2]
[334719491,1723504244588,-166.784176,0.000138,2]
[334719492,1723504244597,-151.0,0.000138,2]
[334719493,1723504244607,-166.784176,0.000138,2]
[334719494,1723504244616,-1209.505672,0.000138,2]
[334719495,1723504244626,-63882.65916445,0.000138,2]
[334719514,1723504246241,-331.39,0.00012,2]
[334719515,1723504246251,-17.47,0.00012,2]
[334719556,1723505413349,252.31,9.548e-05,2]
[334719575,1723505432428,-331.9629089,0.0001,2]
[334719576,1723505432442,-218.0370911,0.0001,2]
[334719577,1723505432453,-408.14579779,0.0001,2]
[334719578,1723505432463,-84.08587214,0.00010899,2]
[334719579,1723505432475,-215.91412786,0.00010899,2]
[334719580,1723505432485,-6600.02852405,0.000109,2]
[334719581,1723505432497,-8619.42,0.000109,2]
[334719582,1723505432519,-1913.12,0.000109,2]
[334719583,1723505432532,-833.79793316,0.000109,2]
[334719584,1723505432544,-318.86689986,0.000109,2]
[334719585,1723505432555,-882.40264769,0.000109,2]
[334719586,1723505432567,-9061.42853876,0.000109,2]
[334719587,1723505432579,-8070.53719691,0.000109,2]
[334719588,1723505432589,-150.0,0.00010999,2]
[334719589,1723505432599,-484.81865183,0.00011,2]
[334719590,1723505432608,-3486.15913154,0.00011,2]
[334719591,1723505432619,-297.04785907,0.00011,2]
[334719592,1723505432632,-800.07111468,0.00011,2]
[334719593,1723505432647,-500.00044002,0.00011,2]
[334719594,1723505432658,-11107.41431585,0.00011,2]
[334719615,1723505438167,-453.22992,0.00011,2]
[334719616,1723505438179,-31117.6887961,0.00011,2]
[334719617,1723505438317,-5027.40000004,0.00011,2]
[334719673,1723505440154,-386.79031717,0.00011,2]
[334719674,1723505440402,-8916.9,0.00011,2]
[334719675,1723505440415,-5971.11084181,0.00011,2]
[334719688,1723505443429,-488.90574858,0.00011,2]
[334719689,1723505443442,-298.06,0.00011,2]
[334719690,1723505443462,-261.6137341,0.00011,2]
[334719691,1723505443486,-173221.18695223,0.00011,2]
[334719692,1723505443495,-250.0,0.00011,2]
[334719694,1723505443506,-59216.0,0.00011,2]
[334719695,1723505443516,-233.53,0.00011,2]
[334719696,1723505443525,-237.52295343,0.00011086,2]
[334719697,1723505443536,-155.0,0.00011105,2]
[334719698,1723505443545,-401.38425567,0.00011105,2]
[334719699,1723505443554,-364.18791554,0.00011105,2]
[334719700,1723505443563,-155.0,0.00011105,2]
[334719701,1723505443573,-205.93925426,0.00011105,2]
[334719702,1723505443583,-3124.48689078,0.00011105,2]
[334719703,1723505446103,-821.25000002,0.00011105,2]
[334719704,1723505446115,-257.06216007,0.00011105,2]
[334719705,1723505446127,-726.60510279,0.00011105,2]
[334719706,1723505446139,-7534.91397266,0.00011105,2]
[334719707,1723505446271,-3018.78934005,0.00011105,2]
[334719708,1723505446281,-203.41395605,0.00011105,2]
[334719709,1723505446291,-164.40260801,0.00011105,2]
[334719710,1723505446301,-164.37927092,0.00011161,2]
[334719711,1723505446310,-5833.70771654,0.00011186,2]
[334719712,1723505446349,-1454.99499138,0.00011186,2]
[334719754,1723505740156,2155.627597,0.00027,120]
[334719760,1723505947944,249.45,9.028e-05,2]
[334719761,1723505984017,33077.17,9.028e-05,2]
[334719762,1723505984042,7720.64979712,9.028e-05,2]
[334719763,1723505984065,10000.0,9.028e-05,2]
[334719764,1723505984097,132918.98221749,9.028e-05,2]
[334719765,1723505985963,692.60668045,9.028e-05,2]
[334719766,1723505986431,155.21309104,9.028e-05,2]
[334719767,1723505994100,227.76686171,9.028e-05,2]
[334719768,1723506081632,37874.57041845,9.028e-05,2]
[334719769,1723506095688,151.081213,0.00025,65]
[334719834,1723506473894,236.97,8.524e-05,2]
[334719854,1723506632043,-236.8,0.00010363,2]
[334719855,1723506632052,-279.35,0.00010363,2]
[334719856,1723506632062,-236.97,0.00010788,2]
[334719857,1723506632071,-336.82,0.00010793,2]
[334719858,1723506632081,-213.3216,0.000108,2]
[334719859,1723506632090,-7472.235072,0.00010886,2]
[334719860,1723506632112,-42695.194028,0.00010886,2]
[334719861,1723506632122,-150.0,0.00010889,2]
[334719862,1723506632131,-56144.57264451,0.0001089,2]
[334719863,1723506632140,-32978.66958683,0.00010899,2]
[334719864,1723506632152,-86646.0246,0.000109,2]
[334719865,1723506632162,-1000.0,0.000109,2]
[334719866,1723506632171,-167.58,0.00010934,2]
[334719867,1723506632181,-846.91,0.00010934,2]
[334719868,1723506632191,-507.1,0.00010934,2]
[334719869,1723506632200,-17619.68,0.00010934,2]
[334719870,1723506632210,-499.99,0.00010934,2]
[334719871,1723506632220,-321.92,0.00010934,2]
[334719872,1723506632229,-185.04,0.00010935,2]
[334719873,1723506632238,-2720.03,0.00010935,2]
[334719874,1723506632249,-185.04,0.00010953,2]
[334719875,1723506632258,-150.0,0.00010959,2]
[334719876,1723506632267,-185.04,0.00010971,2]
[334719877,1723506632277,-150.99,0.00010986,2]
[334719878,1723506632286,-185.04,0.00010989,2]
[334719879,1723506632295,-3368.54,0.00010989,2]
[334719880,1723506632304,-5321.19,0.00010989,2]
[334719881,1723506632313,-499.99,0.00010989,2]
[334719882,1723506632323,-150.99,0.00011,2]
[334719883,1723506632336,-233.53,0.00011,2]
[334719884,1723506632346,-4490.5451,0.00011086,2]
[334719885,1723506632356,-1043.4949,0.00011086,2]
[334719886,1723506632365,-335.364,0.00011086,2]
[334719887,1723506632377,-257.91573417,0.00011086,2]
[334719888,1723506632386,-155.0,0.00011105,2]
[334719889,1723506632396,-155.44272361,0.00011105,2]
[334719890,1723506632405,-9271.17344175,0.00011105,2]
[334719891,1723506632416,-265.43626793,0.00011105,2]
[334719892,1723506632426,-3032.35761195,0.00011105,2]
[334719894,1723506632435,-2341.8386325,0.00011105,2]
[334719896,1723506632444,-1298.23330788,0.00011105,2]
[334719898,1723506632454,-1275.64502519,0.00011105,2]
[334719900,1723506632463,-15483.10746637,0.00011105,2]
[334719902,1723506632472,-28439.02508672,0.00011186,2]
[334719904,1723506632481,-25322.221128,0.00011186,2]
[334719906,1723506632491,-10534.15307555,0.00011186,2]
[334719908,1723506632500,-3000.0,0.00011186,2]
[334719910,1723506632509,-168.0,0.00011193,2]
[334719911,1723506632518,-5403.79429818,0.00011205,2]
[334719913,1723506632528,-9903.70253644,0.00011206,2]
[334719915,1723506632537,-388.08345911,0.00011262,2]